Workbook

Sheet MSU
B1: Rauno Tuomainen | E1: 10.3.1959
B2: SUPERPESIS | E2: Runkosarja | I2: Kärkilyönnit (KL), pesänvälit | P2: Runkosarja TOP-30 | U2: Ylempi loppusarja | AB2: Ylempi loppusarja TOP-10 | AG2: Play off, voitot, voittoprosentti | AL2: Arvo-ottelut | AO2: Mitalit
B3: Vuosi | C3: Sija | D3: Seura | E3: OTT | F3: KUN | G3: LÖI | H3: TOI | I3: KL | J3: 0 > 1 | K3: 1 > 2 | L3: 2 > 3 | M3: 3 > k | N3: KL-% | P3: LÖI | Q3: TOI | R3: L+T | S3: KL | U3: OTT | V3: KUN | W3: LÖI | X3: TOI | Y3: KL | Z3: KL-% | AB3: LÖI | AC3: TOI | AD3: L+T | AE3: KL | AG3: Puolivälierät | AH3: Välierät | AI3: Pronssi | AJ3: Finaalit | AL3: IL | AM3: LL | AN3: Cup | AO3: K | AP3: H | AQ3: P
B4: 1982 | C4: 7. | D4: SiiPo | E4: 13 | F4: 0 | G4: 3 | H4: 3 | I4: 38 | J4: 15 | K4: 12 | L4: 8 | M4: 3 | N4: 48.7 %
B5: 1983 | C5: 8. | D5: SiiPo | E5: 22 | F5: 0 | G5: 6 | H5: 18 | I5: 94 | J5: 55 | K5: 15 | L5: 18 | M5: 6 | N5: 51.9 %
B6: 1984 | C6: 10. | D6: SiiPo | E6: 20 | F6: 0 | G6: 4 | H6: 10 | I6: 64 | J6: 34 | K6: 16 | L6: 10 | M6: 4 | N6: 57.7 %
B7: 1985 | C7: 1. | D7: SiiPo | F7: ykkössarja | AN7: 1
B8: 1986 | C8: 2. | D8: SiiPo | E8: 20 | F8: 0 | G8: 2 | H8: 13 | I8: 43 | J8: 25 | K8: 10 | L8: 6 | M8: 2 | N8: 56.6 % | U8: 7 | V8: 1 | W8: 1 | X8: 3 | Y8: 22 | Z8: 62.9 % | AG8: Loppusarja 2. | AJ8: 0-2 IPV | AP8: 1
B9: 1987 | C9: 6. | D9: SiiPo | E9: 22 | F9: 2 | G9: 12 | H9: 16 | I9: 71 | J9: 28 | K9: 14 | L9: 15 | M9: 14 | N9: 43.6 % | U9: 2 | V9: 0 | W9: 1 | X9: 2 | Y9: 6 | Z9: 46.2 % | AG9: 9-12 IPV
B10: 1988 | C10: 10. | D10: SiiPe | E10: 22 | F10: 1 | G10: 6 | H10: 22 | I10: 102 | J10: 65 | K10: 17 | L10: 13 | M10: 7 | N10: 53.4 % | Q10: 18.
B11: 1989 | C11: 12. | D11: SiiPe | E11: 22 | F11: 1 | G11: 5 | H11: 23 | I11: 97 | J11: 58 | K11: 17 | L11: 16 | M11: 6 | N11: 48.5 % | Q11: 12.
B12: 1990 | C12: 8. | D12: SiiPe | E12: 26 | F12: 0 | G12: 4 | H12: 19 | I12: 115 | J12: 77 | K12: 22 | L12: 12 | M12: 4 | N12: 50.4 % | U12: 3 | V12: 0 | W12: 0 | X12: 3 | Y12: 12 | Z12: 41.4 % | AG12: 1-2 SoJy
B13: 1991 | C13: 11. | D13: SiiPe | E13: 26 | F13: 0 | G13: 6 | H13: 22 | I13: 110 | J13: 64 | K13: 28 | L13: 12 | M13: 6 | N13: 49.3 %
B14: 1992 | C14: 12. | D14: SiiPe | E14: 26 | F14: 0 | G14: 7 | H14: 17 | I14: 85 | J14: 60 | K14: 12 | L14: 6 | M14: 7 | N14: 50.9 %
B15: 1993 | C15: 14. | D15: SiiPe | E15: 25 | F15: 1 | G15: 9 | H15: 10 | I15: 68 | J15: 21 | K15: 23 | L15: 14 | M15: 10 | N15: 48.9 %
B16: Yhteensä | E16: 244 | F16: 5 | G16: 64 | H16: 173 | I16: 887 | J16: 502 | K16: 186 | L16: 130 | M16: 69 | N16: 50.5 % | P16: 0-0-0 | Q16: 0-0-0 | R16: 0-0-0 | S16: 0-0-0 | U16: 12 | V16: 1 | W16: 2 | X16: 8 | Y16: 40 | Z16: 51.9 % | AB16: 0-0-0 | AC16: 0-0-0 | AD16: 0-0-0 | AE16: 0-0-0 | AG16: 0/2 | AH16: 0/0 | AI16: 0/0 | AJ16: 0/1 | AL16: 0 | AM16: 0 | AN16: 1 | AO16: 0 | AP16: 1 | AQ16: 0
AG17: 0.0 % | AH17: 0.0 % | AI17: 0.0 % | AJ17: 0.0 %
B18: Pesispörssi | D18: 631.0
B20: URA SUPERISSA | E20: OTT | F20: KUN | G20: LÖI | H20: TOI | I20: KL | K20: ka/L | L20: ka/T | M20: ka/KL | N20: KL-% | P20: ENSIMMÄISET RUNKOSARJASSA | AG20: ENSIMMÄISET PUDOTUSPELEISSÄ | AL20: YLEISÖ
B21: Runkosarja | E21: 244 | F21: 5 | G21: 64 | H21: 173 | I21: 887 | K21: 0.28 | L21: 0.71 | M21: 3.64 | N21: 50.5 % | P21: Ottelu | R21: 09.05. 1982 SiiPo - IPV 4-5 | Y21: 1. ottelu | AC21: 23 v 1 kk 29 pv | AG21: Ottelu | AH21: 1. 13.08. 1986 SiiPo - SMJ 5-4 | AL21: 1742 | AN21: 27 v 5 kk 3 pv
B22: Ylempi loppusarja | E22: 12 | F22: 1 | G22: 2 | H22: 8 | I22: 40 | K22: 0.25 | L22: 0.67 | M22: 3.33 | N22: 51.9 % | P22: Lyöty | R22: 20.06. 1982 SiiPo - KaMa 4-2 | Y22: 7. ottelu | AC22: 23 v 3 kk 10 pv | AG22: Lyöty | AH22: 5. 31.08. 1986 IPV - SiiPo 12-5 | AL22: 1869 | AN22: 27 v 5 kk 21 pv
B23: Alempi loppusarja | E23: 18 | F23: 0 | G23: 5 | H23: 16 | I23: 61 | K23: 0.28 | L23: 0.89 | M23: 3.39 | N23: 46.9 % | P23: Tuotu | R23: 14.07. 1982 Kiri - SiiPo 16-6 | Y23: 9. ottelu | AC23: 23 v 4 kk 4 pv | AG23: Tuotu | AH23: 5. 31.08. 1986 IPV - SiiPo 12-5 | AL23: 1869 | AN23: 27 v 5 kk 21 pv
B24: KAIKKI | E24: 274 | F24: 6 | G24: 71 | H24: 197 | I24: 988 | K24: 0.28 | L24: 0.72 | M24: 3.61 | N24: 50.3 % | P24: Kunnari | R24: 31.08. 1986 IPV - SiiPo 12-5 | Y24: 94. ottelu | AC24: 24 v 5 kk 21 pv | AG24: Kunnari | AH24: 5. 31.08. 1986 IPV - SiiPo 12-5 | AL24: 1869 | AN24: 27 v 5 kk 21 pv
B26: Seurat | D26: SiiPo = Siilinjärven Ponnistus (1907) | K26: SiiPe = Siilinjärven Pesis (1987)
B28: RUNKOSARJA, KA / OTT | F28: IKÄ | G28: OTT | H28: LÖI | I28: TOI | J28: TEHO | K28: KL | M28: SIJOITUS | P28: OTT | Q28: LÖI | R28: TOI | S28: TEHO | U28: KL | W28: RUNKOSARJA, TASASATASET, ka. / peli
B29: 1982 | C29: 7. | D29: SiiPo | F29: 23 | G29: 13 | H29: =PRODUCT((F4+G4)/E4) -> 0.23 | I29: =PRODUCT(H4/E4) -> 0.23 | J29: =PRODUCT(F4+G4+H4)/E4 -> 0.46 | K29: =PRODUCT(I4/E4) -> 2.92 | M29: 1945 - 1982 | O29: 20 | P29: 819. | Q29: 830. | R29: 866. | S29: 867. | U29: 254. | W29: Ottelutilasto
B30: 1983 | C30: 8. | D30: SiiPo | F30: 24 | G30: 22 | H30: =PRODUCT((F5+G5)/E5) -> 0.27 | I30: =PRODUCT(H5/E5) -> 0.82 | J30: =PRODUCT(F5+G5+H5)/E5 -> 1.09 | K30: =PRODUCT(I5/E5) -> 4.27 | M30: 1945 - 1983 | O30: 20 | P30: 565. | Q30: 674. | R30: 515. | S30: 591. | U30: 164. | W30: 200 | Y30: 95. 24.05. 1992 SiiPe - KaMa 5-5 | AG30: 33 v 2 kk 14 pv
B31: 1984 | C31: 10. | D31: SiiPo | F31: 25 | G31: 20 | H31: 0.20 | I31: 0.50 | J31: 0.70 | K31: 3.20 | M31: 1945 - 1984 | O31: 21 | P31: 457. | Q31: 619. | R31: 440. | S31: 515. | U31: 137.
B32: 1985 | F32: 26 | M32: 1945 - 1985 | P32: 475. | Q32: 630. | R32: 456. | S32: 536. | U32: 155.
B33: 1986 | C33: 2. | D33: SiiPo | F33: 27 | G33: 20 | H33: 0.10 | I33: 0.65 | J33: 0.75 | K33: 2.15 | M33: 1945 - 1986 | P33: 384. | Q33: 611. | R33: 380. | S33: 474. | U33: 148.
B34: 1987 | C34: 6. | D34: SiiPo | F34: 28 | G34: 22 | H34: 0.64 | I34: 0.73 | J34: 1.36 | K34: 3.23 | M34: 1945 - 1987 | P34: 288. | Q34: 466. | R34: 314. | S34: 391. | U34: 129.
B35: 1988 | C35: 10. | D35: SiiPe | F35: 29 | G35: 22 | H35: 0.32 | I35: 1.00 | J35: 1.32 | K35: 4.64 | M35: 1945 - 1988 | P35: 244. | Q35: 432. | R35: 231. | S35: 312. | U35: 109.
B36: 1989 | C36: 12. | D36: SiiPe | F36: 30 | G36: 22 | H36: 0.27 | I36: 1.05 | J36: 1.32 | K36: 4.41 | M36: 1945 - 1989 | P36: 195. | Q36: 394. | R36: 180. | S36: 264. | U36: 89.
B37: 1990 | C37: 8. | D37: SiiPe | F37: 31 | G37: 26 | H37: 0.15 | I37: 0.73 | J37: 0.88 | K37: 4.42 | M37: 1945 - 1990 | P37: 142. | Q37: 384. | R37: 148. | S37: 235. | U37: 76.
B38: 1991 | C38: 11. | D38: SiiPe | F38: 32 | G38: 26 | H38: 0.23 | I38: 0.85 | J38: 1.08 | K38: 4.23 | M38: 1945 - 1991 | P38: 105. | Q38: 361. | R38: 114. | S38: 205. | U38: 65.
B39: 1992 | C39: 12. | D39: SiiPe | F39: 33 | G39: 26 | H39: 0.27 | I39: 0.65 | J39: 0.92 | K39: 3.27 | M39: 1945 - 1992 | P39: 75. | Q39: 335. | R39: 101. | S39: 183. | U39: 66.
B40: 1993 | C40: 14. | D40: SiiPe | F40: 34 | G40: 25 | H40: 0.40 | I40: 0.40 | J40: 0.80 | K40: 2.72 | M40: 1945 - 1993 | P40: 59. | Q40: 300. | R40: 95. | S40: 177. | U40: 59.
B43: PLAY OFF, KA / OTT | F43: IKÄ | G43: OTT | H43: LÖI | I43: TOI | J43: TEHO | K43: KL | M43: SIJOITUS | P43: OTT | Q43: LÖI | R43: TOI | S43: TEHO | U43: KL | W43: PLAY OFF, TASASATASET, ka. / peli
B44: 1986 | C44: 2. | D44: SiiPo | F44: 27 | G44: 7 | H44: =PRODUCT((F8+G8)/E8) -> 0.10 | I44: =PRODUCT(H8/E8) -> 0.65 | J44: =PRODUCT(F8+G8+H8)/E8 -> 0.75 | K44: =PRODUCT(I8/E8) -> 2.15 | M44: 1979 - 1986 | O44: 20 | P44: 76. | Q44: 103. | R44: 94. | S44: 104. | U44: 97.
B45: 1987 | C45: 6. | D45: SiiPo | F45: 28 | G45: 2 | H45: =PRODUCT((F9+G9)/E9) -> 0.64 | I45: =PRODUCT(H9/E9) -> 0.73 | J45: =PRODUCT(F9+G9+H9)/E9 -> 1.36 | K45: =PRODUCT(I9/E9) -> 3.23 | M45: 1979 - 1987 | O45: 20 | P45: 86. | Q45: 97. | R45: 78. | S45: 93. | U45: 89.
B46: 1988 | C46: 10. | D46: SiiPe | F46: 29 | H46: 0.32 | I46: 1.00 | J46: 1.32 | K46: 4.64 | M46: 1979 - 1988 | O46: 21 | P46: 95. | Q46: 110. | R46: 84. | S46: 99. | U46: 102.
B47: 1989 | C47: 12. | D47: SiiPe | F47: 30 | H47: 0.27 | I47: 1.05 | J47: 1.32 | K47: 4.41 | M47: 1979 - 1989 | P47: 107. | Q47: 127. | R47: 95. | S47: 114. | U47: 118.
B48: 1990 | C48: 8. | D48: SiiPe | F48: 31 | G48: 3 | H48: 0.15 | I48: 0.73 | J48: 0.88 | K48: 4.42 | M48: 1979 - 1990 | P48: 108. | Q48: 142. | R48: 81. | S48: 111. | U48: 112.
B49: 1991 | C49: 11. | D49: SiiPe | F49: 32 | H49: 0.23 | I49: 0.85 | J49: 1.08 | K49: 4.23 | M49: 1979 - 1991 | P49: 122. | Q49: 146. | R49: 87. | S49: 116. | U49: 121.
B50: 1992 | C50: 12. | D50: SiiPe | F50: 33 | H50: 0.27 | I50: 0.65 | J50: 0.92 | K50: 3.27 | M50: 1979 - 1992 | P50: 126. | Q50: 152. | R50: 95. | S50: 123. | U50: 129.
B51: 1993 | C51: 14. | D51: SiiPe | F51: 34 | H51: 0.40 | I51: 0.40 | J51: 0.80 | K51: 2.72 | M51: 1979 - 1993 | P51: 138. | Q51: 162. | R51: 102. | S51: 132. | U51: 136.

Sheet MYP
B1: Rauno Tuomainen | E1: 10.3.1959
B2: YKKÖSPESIS | E2: Runkosarja | L2: Runkosarja TOP-10 | Q2: Jatkosarjat | X2: SUOMENSARJA | AA2: Runkosarja | AH2: Runkosarja TOP-10 | AM2: Jatkosarjat
B3: Vuosi | C3: Sija | D3: Seura | E3: OTT | F3: KUN | G3: LÖI | H3: TOI | I3: KL | J3: KL-% | L3: LÖI | M3: TOI | N3: L+T | O3: KL | Q3: OTT | R3: KUN | S3: LÖI | T3: TOI | U3: KL | V3: KL-% | X3: Vuosi | Y3: Sija | Z3: Seura | AA3: OTT | AB3: KUN | AC3: LÖI | AD3: TOI | AE3: KL | AF3: KL-% | AH3: LÖI | AI3: TOI | AJ3: L+T | AK3: KL | AM3: OTT | AN3: KUN | AO3: LÖI | AP3: TOI | AQ3: KL | AR3: KL-%
B4: 1985 | C4: 1. | D4: SiiPo | E4: 21 | F4: 2 | G4: 4 | H4: 27
B5: YHTEENSÄ | E5: =SUM(E4:E4) -> 21 | F5: =SUM(F4:F4) -> 2 | G5: =SUM(G4:G4) -> 4 | H5: =SUM(H4:H4) -> 27 | I5: =SUM(I4:I4) -> 0 | J5: 0.0 % | K5: =SUM(K4:K4) -> 0 | Q5: =SUM(Q4:Q4) -> 0 | R5: =SUM(R4:R4) -> 0 | S5: =SUM(S4:S4) -> 0 | T5: =SUM(T4:T4) -> 0 | U5: =SUM(U4:U4) -> 0 | V5: 0.0 % | W5: =SUM(W4:W4) -> 0 | X5: YHTEENSÄ | AA5: =SUM(AA4:AA4) -> 0 | AB5: =SUM(AB4:AB4) -> 0 | AC5: =SUM(AC4:AC4) -> 0 | AD5: =SUM(AD4:AD4) -> 0 | AE5: =SUM(AE4:AE4) -> 0 | AF5: 0.0 % | AG5: =SUM(AG4:AG4) -> 0 | AM5: =SUM(AM4:AM4) -> 0 | AN5: =SUM(AN4:AN4) -> 0 | AO5: =SUM(AO4:AO4) -> 0 | AP5: =SUM(AP4:AP4) -> 0 | AQ5: =SUM(AQ4:AQ4) -> 0 | AR5: 0.0 % | AS5: =SUM(AS4:AS4) -> 0
B7: KAIKKI OTTELUT | E7: OTT | F7: KUN | G7: LÖI | H7: TOI | I7: KL | J7: KL-% | L7: ka/L | M7: ka/T | N7: ka/l+t | O7: ka/kl | R7: Seurat | T7: SiiPo = Siilinjärven Ponnistus (1907)
B8: SUPERPESIS | E8: 274 | F8: 6 | G8: 71 | H8: 197 | I8: 988 | J8: 50.3 % | K8: =PRODUCT(I8/J8) -> 1964.214712 | L8: =PRODUCT((F8+G8)/E8) -> 0.28 | M8: =PRODUCT(H8/E8) -> 0.72 | N8: =PRODUCT((F8+G8+H8)/E8) -> 1.00 | O8: =PRODUCT(I8/E8) -> 3.61 | T8: SiiPe = Siilinjärven Pesis (1987)
B9: YKKÖSPESIS | E9: =PRODUCT(E5+Q5) -> 21 | F9: =PRODUCT(F5+R5) -> 2 | G9: =PRODUCT(G5+S5) -> 4 | H9: =PRODUCT(H5+T5) -> 27 | I9: =PRODUCT(I5+U5) -> 0 | J9: 0.0 % | K9: =PRODUCT(K5+W5) -> 0 | L9: =PRODUCT((F9+G9)/E9) -> 0.29 | M9: =PRODUCT(H9/E9) -> 1.29 | N9: =PRODUCT((F9+G9+H9)/E9) -> 1.57 | O9: =PRODUCT(I9/E9) -> 0.00
B10: SUOMENSARJA | E10: =PRODUCT(AA5+AM5) -> 0 | F10: =PRODUCT(AB5+AN5) -> 0 | G10: =PRODUCT(AC5+AO5) -> 0 | H10: =PRODUCT(AD5+AP5) -> 0 | I10: =PRODUCT(AE5+AQ5) -> 0 | J10: 0.0 % | K10: =PRODUCT(AG5+AS5) -> 0 | L10: 0.00 | M10: 0.00 | N10: 0.00 | O10: 0.00
B11: YHTEENSÄ | E11: =SUM(E8:E10) -> 295 | F11: =SUM(F8:F10) -> 8 | G11: 75 | H11: 224 | I11: 988 | J11: 0.0 % | K11: =SUM(K8:K10) -> 1964.214712 | L11: =PRODUCT((F11+G11)/E11) -> 0.28 | M11: =PRODUCT(H11/E11) -> 0.76 | N11: =PRODUCT((F11+G11+H11)/E11) -> 1.04 | O11: 3.61

Sheet Pelinjohtaja
B1: PELINJOHTAJAKORTTI
B2: Rauno Tuomainen | E2: 10.3.1959
B3: MSU | C3: Runkosarja | J3: Ylempi loppusarja | N3: Alempi loppusarja | R3: Arvo-ottelut | T3: Mitalit | X3: PLAY OFF
B4: Vuosi | C4: Seura | D4: Sija | E4: O | F4: V | G4: H | H4: Voitto-% | J4: O | K4: V | L4: H | M4: Voitto-% | N4: O | O4: V | P4: H | Q4: Voitto-% | R4: IL | S4: LL | T4: 1 | U4: 2 | V4: 3 | X4: Puolivälierä | Y4: Välierä | Z4: Pronssi | AA4: Finaali
B5: 1993 | C5: SiiPe | D5: 14. | E5: 1 | F5: 0 | G5: 1 | H5: =PRODUCT(F5/E5) -> 0.0 %
B6: 1996 | C6: SiiPe | D6: 8. | E6: 12 | F6: 5 | G6: 7 | H6: =PRODUCT(F6/E6) -> 41.7 % | J6: 5 | K6: 2 | L6: 3 | M6: =PRODUCT(K6/J6) -> 40.0 % | X6: 2-3 Kiri
B7: 1997 | C7: SiiPe | D7: 8. | E7: 28 | F7: 13 | G7: 15 | H7: =PRODUCT(F7/E7) -> 46.4 % | J7: 3 | K7: 0 | L7: 3 | M7: =PRODUCT(K7/J7) -> 0.0 % | X7: 0-3 KiPa
B8: 1998 | C8: SiiPe | D8: 11. | E8: 19 | F8: 7 | G8: 12 | H8: =PRODUCT(F8/E8) -> 36.8 % | X8: Jatkosarja
B9: Yhteensä | E9: =SUM(E5:E8) -> 60 | F9: =SUM(F5:F8) -> 25 | G9: =SUM(G5:G8) -> 35 | H9: =PRODUCT(F9/E9) -> 41.7 % | J9: =SUM(J5:J8) -> 8 | K9: =SUM(K5:K8) -> 2 | L9: =SUM(L5:L8) -> 6 | M9: =PRODUCT(K9/J9) -> 25.0 % | N9: =SUM(N5:N8) -> 0 | O9: =SUM(O5:O8) -> 0 | P9: =SUM(P5:P8) -> 0 | Q9: 0.0 % | R9: =SUM(R3:R8) -> 0 | S9: 0 | T9: =SUM(T5:T8) -> 0 | U9: =SUM(U5:U8) -> 0 | V9: =SUM(V5:V8) -> 0 | X9: 0 - 2
B11: URA SUPERISSA | E11: O | F11: V | G11: H | H11: Voitto-% | J11: PLAY OFF | M11: SARJAT | N11: O | O11: V | P11: H | Q11: Voitto-% | X11: Seurat: | Y11: SiiPe = Siilinjärven Pesis (1987)
B12: Runkosarja | E12: 60 | F12: 25 | G12: 35 | H12: 41.7 % | J12: Puolivälierät | M12: 0 - 2 | N12: 8 | O12: 2 | P12: 6 | Q12: 25.0 %
B13: Ylempi loppusarja | E13: 8 | F13: 2 | G13: 6 | H13: 25.0 % | J13: Välierät
B14: Alempi loppusarja | J14: Finaalit
B15: KAIKKI | E15: 68 | F15: 27 | G15: 41 | H15: 39.7 % | J15: KAIKKI | N15: 8 | O15: 2 | P15: 6 | Q15: 25.0 %
B17: NSU | C17: Runkosarja | J17: Ylempi loppusarja | N17: Alempi loppusarja | R17: Arvo-ottelut | T17: Mitalit | X17: PLAY OFF
B18: Vuosi | C18: Seura | D18: Sija | E18: O | F18: V | G18: H | H18: Voitto-% | J18: O | K18: V | L18: H | M18: Voitto-% | N18: O | O18: V | P18: H | Q18: Voitto-% | R18: IL | S18: LL | T18: 1 | U18: 2 | V18: 3 | X18: Puolivälierä | Y18: Välierä | Z18: Pronssi | AA18: Finaali
B19: 2000 | C19: SiiPe | D19: 4. | E19: 22 | F19: 15 | G19: 7 | H19: =PRODUCT(F19/E19) -> 68.2 % | J19: 12 | K19: 4 | L19: 8 | M19: =PRODUCT(K19/J19) -> 33.3 % | R19: 1 | X19: 3-2 Pesäkarhut | Y19: 1-3 PattU
B20: 2001 | C20: SiiPe | D20: 7. | E20: 24 | F20: 13 | G20: 11 | H20: =PRODUCT(F20/E20) -> 54.2 % | J20: 3 | K20: 0 | L20: 3 | M20: =PRODUCT(K20/J20) -> 0.0 % | X20: 0-3 PattU
B21: Yhteensä | E21: =SUM(E19:E20) -> 46 | F21: =SUM(F19:F20) -> 28 | G21: =SUM(G19:G20) -> 18 | H21: =PRODUCT(F21/E21) -> 60.9 % | J21: =SUM(J19:J20) -> 15 | K21: =SUM(K19:K20) -> 4 | L21: =SUM(L19:L20) -> 11 | M21: =PRODUCT(K21/J21) -> 26.7 % | N21: =SUM(N19:N20) -> 0 | O21: =SUM(O19:O20) -> 0 | P21: =SUM(P19:P20) -> 0 | Q21: 0.0 % | R21: =SUM(R15:R20) -> 1 | S21: 0 | T21: =SUM(T19:T20) -> 0 | U21: =SUM(U19:U20) -> 0 | V21: =SUM(V19:V20) -> 0
B23: URA SUPERISSA | E23: O | F23: V | G23: H | H23: Voitto-% | J23: PLAY OFF | M23: SARJAT | N23: O | O23: V | P23: H | Q23: Voitto-% | X23: Seurat: | Y23: SiiPe = Siilinjärven Pesis (1987)
B24: Runkosarja | E24: 46 | F24: 28 | G24: 18 | H24: 60.9 % | J24: Puolivälierät | M24: 1 - 1 | N24: 8 | O24: 3 | P24: 5 | Q24: 37.5 %
B25: Ylempi loppusarja | E25: 15 | F25: 4 | G25: 11 | H25: 26.7 % | J25: Välierät | M25: 0 - 1 | N25: 4 | O25: 1 | P25: 3 | Q25: 25.0 %
B26: Alempi loppusarja | J26: Finaalit
B27: KAIKKI | E27: 61 | F27: 32 | G27: 29 | H27: 52.5 % | J27: KAIKKI | N27: 12 | O27: 4 | P27: 8 | Q27: 33.3 %

Sheet Kärkilyönnit
B1: KÄRKILYÖNNIT RUNKOSARJASSA | V1: VUOSITTAISET SIJOITUKSET TOP - 30
G2: 0 > 1 | J2: 1 > 2 | M2: 2 > 3 | P2: 3 > k | S2: Yhteensä
B3: Vuosi | C3: Sija | D3: Seura | E3: OTT | F3: KL | G3: YHT | H3: % | I3: KL | J3: YHT | K3: % | L3: KL | M3: YHT | N3: % | O3: KL | P3: YHT | Q3: % | R3: KL | S3: YHT | T3: % | V3: Vuosi | W3: Sija | X3: Seura | Y3: 0 > 1 | Z3: 1 > 2 | AA3: 2 > 3 | AB3: 3 > k | AC3: KL
B4: 1982 | C4: 7. | D4: SiiPo | E4: 13 | F4: 15 | G4: 32 | H4: =PRODUCT(F4/G4) -> 46.9 % | I4: 12 | J4: 22 | K4: =PRODUCT(I4/J4) -> 54.5 % | L4: 8 | M4: 12 | N4: =PRODUCT(L4/M4) -> 66.7 % | O4: 3 | P4: 12 | Q4: =PRODUCT(O4/P4) -> 25.0 % | R4: 38 | S4: =PRODUCT(G4+J4+M4+P4) -> 78 | T4: =PRODUCT(R4/S4) -> 48.7 % | V4: 1982 | W4: 7. | X4: SiiPo
B5: 1983 | C5: 10. | D5: SiiPo | E5: 22 | F5: 55 | G5: 87 | H5: =PRODUCT(F5/G5) -> 63.2 % | I5: 15 | J5: 38 | K5: =PRODUCT(I5/J5) -> 39.5 % | L5: 18 | M5: 33 | N5: =PRODUCT(L5/M5) -> 54.5 % | O5: 6 | P5: 23 | Q5: =PRODUCT(O5/P5) -> 26.1 % | R5: 94 | S5: 181 | T5: =PRODUCT(R5/S5) -> 51.9 % | V5: 1983 | W5: 10. | X5: SiiPo | Y5: 5.
B6: 1984 | C6: 8. | D6: SiiPo | E6: 20 | F6: 34 | G6: 50 | H6: =PRODUCT(F6/G6) -> 68.0 % | I6: 16 | J6: 28 | K6: =PRODUCT(I6/J6) -> 57.1 % | L6: 10 | M6: 21 | N6: =PRODUCT(L6/M6) -> 47.6 % | O6: 4 | P6: 12 | Q6: =PRODUCT(O6/P6) -> 33.3 % | R6: 64 | S6: 111 | T6: 57.7 % | V6: 1984 | W6: 8. | X6: SiiPo | Y6: 20.
B7: 1985 | V7: 1985
B8: 1986 | C8: 3. | D8: SiiPo | E8: 20 | F8: 25 | G8: 43 | H8: =PRODUCT(F8/G8) -> 58.1 % | I8: 10 | J8: 17 | K8: =PRODUCT(I8/J8) -> 58.8 % | L8: 6 | M8: 8 | N8: =PRODUCT(L8/M8) -> 75.0 % | O8: 2 | P8: 8 | Q8: =PRODUCT(O8/P8) -> 25.0 % | R8: 43 | S8: 76 | T8: 56.6 % | V8: 1986 | W8: 3. | X8: SiiPo
B9: 1987 | C9: 4. | D9: SiiPo | E9: 22 | F9: 28 | I9: 14 | L9: 15 | O9: 14 | R9: =PRODUCT(F9+I9+L9+O9) -> 71 | S9: 163 | T9: =PRODUCT(R9/S9) -> 43.6 % | V9: 1987 | W9: 4. | X9: SiiPo
B10: 1988 | C10: 10. | D10: SiiPe | E10: 22 | F10: 65 | G10: 103 | H10: =PRODUCT(F10/G10) -> 63.1 % | I10: 17 | J10: 38 | K10: =PRODUCT(I10/J10) -> 44.7 % | L10: 13 | M10: 26 | N10: =PRODUCT(L10/M10) -> 50.0 % | O10: 7 | P10: 24 | Q10: =PRODUCT(O10/P10) -> 29.2 % | R10: =PRODUCT(F10+I10+L10+O10) -> 102 | S10: 191 | T10: 53.4 % | V10: 1988 | W10: 10. | X10: SiiPe | Y10: 3.
B11: 1989 | C11: 9. | D11: SiiPe | E11: 22 | F11: 58 | I11: 17 | L11: 16 | O11: 6 | R11: =PRODUCT(F11+I11+L11+O11) -> 97 | S11: 200 | T11: =PRODUCT(R11/S11) -> 48.5 % | V11: 1989 | W11: 9. | X11: SiiPe | Y11: 4.
B12: 1990 | C12: 7. | D12: SiiPe | E12: 26 | F12: 77 | G12: 132 | H12: =PRODUCT(F12/G12) -> 58.3 % | I12: 22 | J12: 50 | K12: =PRODUCT(I12/J12) -> 44.0 % | L12: 12 | M12: 30 | N12: =PRODUCT(L12/M12) -> 40.0 % | O12: 4 | P12: 15 | Q12: =PRODUCT(O12/P12) -> 26.7 % | R12: 115 | S12: 227 | T12: =PRODUCT(R12/S12) -> 50.7 % | V12: 1990 | W12: 7. | X12: SiiPe | Y12: 2.
B13: 1991 | C13: 11. | D13: SiiPe | E13: 26 | F13: 64 | G13: 121 | H13: =PRODUCT(F13/G13) -> 52.9 % | I13: 28 | J13: 59 | K13: =PRODUCT(I13/J13) -> 47.5 % | L13: 12 | M13: 23 | N13: =PRODUCT(L13/M13) -> 52.2 % | O13: 6 | P13: 20 | Q13: =PRODUCT(O13/P13) -> 30.0 % | R13: =PRODUCT(F13+I13+L13+O13) -> 110 | S13: 223 | T13: =PRODUCT(R13/S13) -> 49.3 % | V13: 1991 | W13: 11. | X13: SiiPe | Y13: 9.
B14: 1992 | C14: 11. | D14: SiiPe | E14: 26 | F14: 60 | G14: 100 | H14: =PRODUCT(F14/G14) -> 60.0 % | I14: 12 | J14: 25 | K14: =PRODUCT(I14/J14) -> 48.0 % | L14: 6 | M14: 18 | N14: =PRODUCT(L14/M14) -> 33.3 % | O14: 7 | P14: 24 | Q14: =PRODUCT(O14/P14) -> 29.2 % | R14: 85 | S14: 167 | T14: 50.9 % | V14: 1992 | W14: 11. | X14: SiiPe | Y14: 13.
B15: 1993 | C15: 14. | D15: SiiPe | E15: 25 | F15: 21 | G15: 50 | H15: =PRODUCT(F15/G15) -> 42.0 % | I15: 23 | J15: 37 | K15: =PRODUCT(I15/J15) -> 62.2 % | L15: 14 | M15: 25 | N15: =PRODUCT(L15/M15) -> 56.0 % | O15: 10 | P15: 27 | Q15: =PRODUCT(O15/P15) -> 37.0 % | R15: 68 | S15: 139 | T15: 48.9 % | V15: 1993 | W15: 14. | X15: SiiPe
B16: Yhteensä | E16: =SUM(E4:E15) -> 244 | F16: =SUM(F4:F15)-86 -> 416 | G16: =SUM(G4:G15) -> 718 | H16: =PRODUCT(F16/G16) -> 57.9 % | I16: =SUM(I4:I15)-31 -> 155 | J16: =SUM(J4:J15) -> 314 | K16: =PRODUCT(I16/J16) -> 49.4 % | L16: =SUM(L4:L15)-31 -> 99 | M16: =SUM(M4:M15) -> 196 | N16: =PRODUCT(L16/M16) -> 50.5 % | O16: =SUM(O4:O15)-20 -> 49 | P16: =SUM(P4:P15) -> 165 | Q16: =PRODUCT(O16/P16) -> 29.7 % | R16: =SUM(R4:R15) -> 887 | S16: =SUM(S4:S15) -> 1756 | T16: =PRODUCT(R16/S16) -> 50.5 %
B18: KÄRKILYÖNNIT YLEMMISSÄ PUDOTUSPELEISSÄ | V18: VUOSITTAISET SIJOITUKSET TOP - 30
G19: 0 > 1 | J19: 1 > 2 | M19: 2 > 3 | P19: 3 > k | S19: Yhteensä
B20: Vuosi | C20: Sija | D20: Seura | E20: OTT | F20: KL | G20: YHT | H20: % | I20: KL | J20: YHT | K20: % | L20: KL | M20: YHT | N20: % | O20: KL | P20: YHT | Q20: % | R20: KL | S20: YHT | T20: % | V20: Vuosi | W20: Sija | X20: Seura | Y20: 0 > 1 | Z20: 1 > 2 | AA20: 2 > 3 | AB20: 3 > k | AC20: KL
B21: 1982 | C21: 7. | D21: SiiPo | V21: 1982 | W21: 7. | X21: SiiPo
B22: 1983 | C22: 8. | D22: SiiPo | V22: 1983 | W22: 8. | X22: SiiPo
B23: 1984 | C23: 10. | D23: SiiPo | V23: 1984 | W23: 10. | X23: SiiPo
B24: 1985 | V24: 1985
B25: 1986 | C25: 2. | D25: SiiPo | E25: 7 | F25: 9 | G25: 19 | H25: 47.4 % | I25: 5 | J25: 6 | K25: 83.3 % | L25: 6 | M25: 7 | N25: 85.7 % | O25: 2 | P25: 3 | Q25: 66.7 % | R25: 22 | S25: 35 | T25: 62.9 % | V25: 1986 | W25: 2. | X25: SiiPo | Y25: 8. | AA25: 21. | AC25: 25.
B26: 1987 | C26: 6. | D26: SiiPo | E26: 2 | F26: 1 | G26: 4 | H26: 25.0 % | I26: 4 | J26: 5 | K26: 80.0 % | L26: 0 | M26: 2 | N26: 0.0 % | O26: 1 | P26: 2 | Q26: 50.0 % | R26: 6 | S26: 13 | T26: 46.2 % | V26: 1987 | W26: 6. | X26: SiiPo | Z26: 30.
B27: 1988 | C27: 10. | D27: SiiPe | V27: 1988 | W27: 10. | X27: SiiPe
B28: 1989 | C28: 12. | D28: SiiPe | V28: 1989 | W28: 12. | X28: SiiPe
B29: 1990 | C29: 8. | D29: SiiPe | E29: 3 | F29: 6 | G29: 16 | H29: 37.5 % | I29: 5 | J29: 7 | K29: 71.4 % | L29: 1 | M29: 3 | N29: 33.3 % | O29: 0 | P29: 3 | Q29: 0.0 % | R29: 12 | S29: 29 | T29: 41.4 % | V29: 1990 | W29: 8. | X29: SiiPe | Y29: 23. | Z29: 28.
B30: 1991 | C30: 11. | D30: SiiPe | V30: 1991 | W30: 11. | X30: SiiPe
B31: 1992 | C31: 12. | D31: SiiPe | V31: 1992 | W31: 12. | X31: SiiPe
B32: 1993 | C32: 14. | D32: SiiPe | V32: 1993 | W32: 14. | X32: SiiPe
B33: Yhteensä | E33: =SUM(E19:E32) -> 12 | F33: =SUM(F21:F32) -> 16 | G33: =SUM(G21:G32) -> 39 | H33: =PRODUCT(F33/G33) -> 41.0 % | I33: =SUM(I21:I32) -> 14 | J33: =SUM(J21:J32) -> 18 | K33: =PRODUCT(I33/J33) -> 77.8 % | L33: =SUM(L21:L32) -> 7 | M33: =SUM(M21:M32) -> 12 | N33: =PRODUCT(L33/M33) -> 58.3 % | O33: =SUM(O21:O32) -> 3 | P33: =SUM(P21:P32) -> 8 | Q33: =PRODUCT(O33/P33) -> 37.5 % | R33: =SUM(R21:R32) -> 40 | S33: =SUM(S21:S32) -> 77 | T33: =PRODUCT(R33/S33) -> 51.9 %
B35: KÄRKILYÖNNIT
G36: 0 > 1 | J36: 1 > 2 | M36: 2 > 3 | P36: 3 > k | S36: Yhteensä
E37: OTT | F37: KL | G37: YHT | H37: % | I37: KL | J37: YHT | K37: % | L37: KL | M37: YHT | N37: % | O37: KL | P37: YHT | Q37: % | R37: KL | S37: YHT | T37: %
B38: RUNKOSARJA | E38: =PRODUCT(E16) -> 244 | F38: =PRODUCT(F16) -> 416 | G38: =PRODUCT(G16) -> 718 | H38: =PRODUCT(H16) -> 57.9 % | I38: =PRODUCT(I16) -> 155 | J38: =PRODUCT(J16) -> 314 | K38: =PRODUCT(K16) -> 49.4 % | L38: =PRODUCT(L16) -> 99 | M38: =PRODUCT(M16) -> 196 | N38: =PRODUCT(N16) -> 50.5 % | O38: =PRODUCT(O16) -> 49 | P38: =PRODUCT(P16) -> 165 | Q38: =PRODUCT(Q16) -> 29.7 % | R38: =PRODUCT(R16) -> 887 | S38: =PRODUCT(S16) -> 1756 | T38: =PRODUCT(T16) -> 50.5 %
B39: PLAY OFF | E39: =PRODUCT(E33) -> 12 | F39: =PRODUCT(F33) -> 16 | G39: 39 | H39: 41.0 % | I39: 14 | J39: 18 | K39: 77.8 % | L39: 7 | M39: 12 | N39: 58.3 % | O39: 3 | P39: 8 | Q39: 37.5 % | R39: 40 | S39: 77 | T39: 51.9 %
